fUSD/lending_fUSD_20260301
["ID","MTS","AMOUNT","RATE_DAILY","PERIOD"]
[406955961,1772350240803,-500.0,0.00013077,2]
[406955962,1772350240813,-500.0,0.00013077,2]
[406955963,1772350240823,-500.0,0.00013077,2]
[406955964,1772350240833,-151.0,0.00013077,2]
[406955965,1772350240843,-151.0,0.00013077,2]
[406955966,1772350240853,-151.0,0.00013077,2]
[406955967,1772350240863,-151.0,0.00013077,2]
[406955968,1772350240873,-151.0,0.00013077,2]
[406955969,1772350240883,-151.0,0.00013077,2]
[406955970,1772350241033,-151.0,0.00013077,2]
[406955971,1772350241042,-151.0,0.00013077,2]
[406955972,1772350241052,-151.0,0.00013077,2]
[406955973,1772350241062,-151.0,0.00013077,2]
[406955974,1772350241072,-151.0,0.00013077,2]
[406955975,1772350241082,-687.14,0.0001308,2]
[406955976,1772350241092,-3644.05,0.00013085,2]
[406955977,1772350241102,-7488.53,0.00013112,2]
[406955978,1772350241112,-679.98,0.00013124,2]
[406955979,1772350241122,-848.13,0.00013166,2]
[406955980,1772350241133,-558.7,0.00013178,2]
[406955981,1772350241142,-184.0,0.0001318,2]
[406955982,1772350241152,-150.0,0.0001329,2]
[406955983,1772350241162,-712.07,0.000133,2]
[406955984,1772350241172,-1561.2243964,0.00013333,2]
[406955985,1772350241183,-151.03,0.0001336,2]
[406955986,1772350241192,-166.66,0.00013438,2]
[406955987,1772350241202,-848.13,0.0001344,2]
[406955988,1772350241212,-178.0,0.00013456,2]
[406955989,1772350241221,-220.0,0.00013534,2]
[406955990,1772350241231,-848.13,0.00013714,2]
[406955992,1772350241240,-151.03,0.00013783,2]
[406955994,1772350241250,-687.14,0.00013806,2]
[406955996,1772350241259,-166.66,0.00013881,2]
[406955998,1772350241268,-848.15421015,0.00013988,2]
[406956000,1772350241278,-523.0,0.0001411,2]
[406956002,1772350241287,-305.642889,0.00014136,7]
[406956004,1772350241296,-151.03,0.00014206,2]
[406956006,1772350241305,-158.620977,0.00014317,7]
[406956008,1772350241315,-166.66,0.00014325,2]
[406956010,1772350241324,-687.14,0.00014533,2]
[406956012,1772350241333,-151.03,0.0001463,2]
[406956014,1772350241343,-58588.7455811,0.00014673,2]
[406956016,1772350241352,-166.66,0.00014768,2]
[406956018,1772350241361,-500.0,0.00014773,2]
[406956020,1772350241370,-290.12369262,0.00014773,2]
[406956021,1772350241378,-321.13495914,0.00014773,2]
[406956022,1772350241387,-500.0,0.00014773,2]
[406956023,1772350241396,-500.68771731,0.00014773,2]
[406956024,1772350241405,-500.0,0.00014773,2]
[406956025,1772350241416,-500.0,0.00014773,2]
[406956026,1772350241425,-500.0,0.00014773,2]
[406956027,1772350241434,-500.0,0.00014773,2]
[406956028,1772350241444,-277.29366352,0.00014773,2]
[406956029,1772350241454,-500.0,0.00014773,2]
[406956030,1772350241463,-500.0,0.00014773,2]
[406956031,1772350241473,-160.14509426,0.00014773,2]
[406956032,1772350241482,-500.0,0.00014773,2]
[406956033,1772350241492,-500.0,0.00014773,2]
[406956034,1772350241502,-500.0,0.00014773,2]
[406956035,1772350241511,-500.0,0.00014773,2]
[406956036,1772350241520,-500.0,0.00014773,2]
[406956037,1772350241530,-500.0,0.00014773,2]
[406956038,1772350241539,-500.0,0.00014773,2]
[406956039,1772350241549,-500.0,0.00014773,2]
[406956040,1772350241558,-500.0,0.00014773,2]
[406956041,1772350241568,-500.0,0.00014773,2]
[406956042,1772350241577,-500.0,0.00014773,2]
[406956043,1772350241586,-500.0,0.00014773,2]
[406956044,1772350241594,-500.0,0.00014773,2]
[406956045,1772350241602,-500.0,0.00014773,2]
[406956046,1772350241611,-500.0,0.00014773,2]
[406956047,1772350241620,-500.0,0.00014773,2]
[406956048,1772350241629,-507.52455527,0.00014773,2]
[406956049,1772350241638,-500.0,0.00014773,2]
[406956050,1772350241648,-500.0,0.00014773,2]
[406956051,1772350241657,-504.49415487,0.00014773,2]
[406956052,1772350241667,-500.0,0.00014773,2]
[406956053,1772350241676,-153.04720253,0.00014815,2]
[406956054,1772350241696,-174.09452548,0.00014827,2]
[406956055,1772350241713,-160.0,0.00014827,2]
[406956056,1772350241723,-58588.74558109,0.00015031,2]
[406956057,1772350241733,-151.03,0.00015053,2]
[406956058,1772350241743,-4000.0,0.00015079,2]
[406956059,1772350241752,-166.66,0.00015212,2]
[406956060,1772350241761,-939.01,0.00015248,2]
[406956061,1772350241771,-687.14,0.0001526,2]
[406956062,1772350241781,-1000.0,0.00015312,2]
[406956063,1772350241790,-1000.0,0.00015321,2]
[406956064,1772350241800,-1032.89246011,0.00015321,2]
[406956065,1772350241810,-712.37829793,0.00015321,2]
[406956066,1772350241820,-1000.0,0.00015321,2]
[406956067,1772350241840,-484.71516567,0.00015321,2]
[406956068,1772350241851,-526.23779749,0.00015321,2]
[406956069,1772350241861,-500.0,0.00015321,2]
[406956070,1772350241871,-500.0,0.00015321,2]
[406956071,1772350241880,-1000.0,0.00015321,2]
[406956072,1772350241890,-1000.0,0.00015321,2]
[406956073,1772350241899,-2899.4506,0.00015364,2]
[406956074,1772350241908,-161.68029981,0.00015388,2]
[406956075,1772350241918,-500.0,0.00015388,2]
[406956076,1772350241928,-500.0,0.00015388,2]
[406956077,1772350241940,-500.0,0.00015388,2]
[406956078,1772350241951,-500.0,0.00015388,2]
[406956079,1772350241961,-348.04327748,0.00015388,2]
[406956080,1772350241971,-500.0,0.00015388,2]
[406956081,1772350241980,-500.0,0.00015388,2]
[406956082,1772350241991,-500.0,0.00015388,2]
[406956083,1772350242000,-334.83572103,0.00015388,2]
[406956084,1772350242009,-500.0,0.00015388,2]
[406956085,1772350242019,-500.0,0.00015388,2]
[406956086,1772350242028,-500.0,0.00015388,2]
[406956087,1772350242038,-500.0,0.00015388,2]
[406956088,1772350242048,-500.0,0.00015388,2]
[406956089,1772350242057,-58588.74558109,0.00015389,2]
[406956090,1772350242067,-2500.0,0.000154,2]
[406956091,1772350242076,-4000.0,0.00015456,2]
[406956092,1772350242085,-1278.0,0.00015464,2]
[406956093,1772350242094,-1211.0,0.00015464,2]
[406956094,1772350242103,-921.0,0.00015464,2]
[406956095,1772350242113,-2457.0,0.00015464,2]
[406956096,1772350242122,-1340.0,0.00015464,2]
[406956097,1772350242131,-1041.0,0.00015464,2]
[406956098,1772350242141,-5000.0,0.00015477,2]
[406956099,1772350242150,-211.84948894,0.000155,2]
[406956100,1772350242160,-222.1017724,0.000155,2]
[406956101,1772350242169,-1823.27553786,0.000155,2]
[406956102,1772350242179,-162.16882862,0.000155,2]
[406956103,1772350242188,-1536.36222744,0.000155,2]
[406956104,1772350242198,-5202.21924122,0.000155,2]
[406956105,1772350242207,-8424.68065844,0.000155,2]
[406956106,1772350242217,-298.32204772,0.000155,2]
[406956107,1772350242226,-3324.761394,0.00015521,7]
[406956108,1772350242236,-748.601069,0.00015521,7]
[406956109,1772350242244,-939.16250311,0.00015567,2]
[406956110,1772350242253,-500.0,0.00015576,2]
[406956111,1772350242262,-500.0,0.00015576,2]
[406956112,1772350242272,-500.0,0.00015576,2]
[406956113,1772350242281,-500.0,0.00015576,2]
[406956114,1772350242290,-500.0,0.00015576,2]
[406956115,1772350242300,-500.0,0.00015576,2]
[406956116,1772350242309,-500.0,0.00015576,2]
[406956117,1772350242319,-500.0,0.00015576,2]
[406956118,1772350242329,-500.0,0.00015576,2]
[406956119,1772350242338,-500.0,0.00015576,2]
[406956120,1772350242348,-500.0,0.00015576,2]
[406956121,1772350242357,-500.0,0.00015576,2]
[406956122,1772350242367,-454.69204283,0.00015576,2]
[406956123,1772350242376,-397.90262625,0.00015576,2]
[406956124,1772350242385,-500.0,0.00015576,2]
[406956125,1772350242395,-500.0,0.00015576,2]
[406956126,1772350242405,-241.08413845,0.00015576,2]
[406956127,1772350242414,-500.0,0.00015576,2]
[406956128,1772350242424,-500.0,0.00015576,2]
[406956129,1772350242433,-541.42411869,0.00015576,2]
[406956130,1772350242443,-500.0,0.00015576,2]
[406956131,1772350242452,-524.89605087,0.00015576,2]
[406956132,1772350242460,-2500000.0,0.00015577,2]
[406956133,1772350242470,-300.0,0.000156,5]
[406956134,1772350242479,-166.66,0.00015655,2]
[406956135,1772350242489,-600.0,0.000157,5]
[406956136,1772350242499,-500.0,0.00015711,2]
[406956137,1772350242508,-151.0,0.00015711,2]
[406956138,1772350242517,-644.79446246,0.00015711,2]
[406956139,1772350242527,-500.0,0.00015711,2]
[406956140,1772350242536,-500.0,0.00015711,2]
[406956141,1772350242545,-500.0,0.00015711,2]
[406956142,1772350242555,-500.0,0.00015711,2]
[406956143,1772350242564,-500.0,0.00015711,2]
[406956144,1772350242573,-500.0,0.00015711,2]
[406956145,1772350242583,-500.0,0.00015711,2]
[406956146,1772350242592,-500.0,0.00015711,2]
[406956147,1772350242602,-500.0,0.00015711,2]
[406956148,1772350242613,-393.80457243,0.00015711,2]
[406956149,1772350242623,-58588.74558109,0.00015746,2]
[406956150,1772350242632,-5202.21924122,0.00015766,2]
[406956151,1772350242642,-668.65185757,0.00015766,2]
[406956152,1772350242651,-151.0,0.00015766,2]
[406956153,1772350242660,-900.0,0.000158,5]
[406956154,1772350242669,-693.3919763,0.00015821,2]
[406956155,1772350242678,-151.0,0.00015821,2]
[406956156,1772350242689,-4000.0,0.00015833,2]
[406956157,1772350242698,-1536.36222738,0.00015843,2]
[406956158,1772350242707,-1500.0,0.00015868,2]
[406956159,1772350242716,-719.04747942,0.00015876,2]
[406956160,1772350242726,-151.0,0.00015876,2]
[406956161,1772350242736,-152.0,0.00015886,3]
[406956162,1772350242745,-1200.0,0.000159,5]
[406956163,1772350242757,-745.65223616,0.00015931,2]
[406956164,1772350242767,-151.0,0.00015931,2]
[406956165,1772350242776,-8424.6806584,0.0001598,2]
[406956166,1772350242786,-687.14,0.00015986,2]
[406956167,1772350242795,-773.2413689,0.00015986,2]
[406956168,1772350242805,-5202.21924122,0.00016032,2]
[406956169,1772350242814,-7104.0,0.00016033,2]
[406956170,1772350242824,-801.85129955,0.00016041,2]
[406956171,1772350242834,-200.0,0.00016085,2]
[406956172,1772350242843,-831.51979763,0.00016096,2]
[406956173,1772350242853,-58588.74558109,0.00016104,2]
[406956174,1772350242863,-7960.06,0.00016116,2]
[406956175,1772350242872,-862.28603014,0.00016151,2]
[406956176,1772350242882,-150.0,0.00016183,2]
[406956177,1772350242891,-1536.36222738,0.00016186,2]
[406956178,1772350242900,-894.19061326,0.00016206,2]
[406956179,1772350242909,-4000.0,0.0001621,2]
[406956180,1772350242919,-927.27566595,0.00016261,2]
[406956181,1772350242929,-5202.21924122,0.00016298,2]
[406956182,1772350242938,-961.58486559,0.00016316,2]
[406956183,1772350242948,-500.0,0.00016356,2]
[406956184,1772350242960,-900.0,0.00016356,2]
[406956185,1772350242970,-600.0,0.00016356,2]
[406956186,1772350242979,-50000.0,0.0001636,2]
[406956187,1772350242991,-997.16350561,0.00016371,2]
[406956188,1772350243000,-160.0,0.000164,2]
[406956189,1772350243010,-2000.0,0.00016416,2]
[406956190,1772350243019,-1999.0,0.00016438,2]
[406956191,1772350243028,-8424.6806584,0.0001646,2]
[406956192,1772350243038,-58588.74558109,0.00016462,2]
[406956193,1772350243047,-1536.36222738,0.00016529,2]
[406956194,1772350243057,-5202.21924122,0.00016564,2]
[406956195,1772350243066,-4000.0,0.00016587,2]
[406956196,1772350243075,-153.04720253,0.00016667,2]
[406956197,1772350243084,-211.84948893,0.000167,2]
[406956198,1772350243094,-222.1017724,0.000167,2]
[406956199,1772350243103,-1823.27553784,0.000167,2]
[406956200,1772350243113,-162.1688286,0.000167,2]
[406956201,1772350243122,-687.14,0.00016713,2]
[406956202,1772350243132,-858.0,0.0001672,2]
[406956203,1772350243142,-152.0,0.00016757,4]
[406956204,1772350243151,-58588.74558109,0.0001682,2]
[406956205,1772350243160,-5202.21924122,0.00016829,2]
[406956206,1772350243170,-1536.36222738,0.00016871,2]
[406956207,1772350243179,-884.0,0.00016876,2]
[406956208,1772350243188,-259.46,0.0001689,2]
[406956209,1772350243197,-884.0,0.00016931,2]
[406956210,1772350243207,-150.0,0.00016938,7]
[406956211,1772350243216,-8424.6806584,0.0001694,2]
[406956212,1772350243226,-259.46,0.00016942,2]
[406956213,1772350243235,-2500.0,0.00016964,2]
[406956214,1772350243244,-884.0,0.00016986,2]
[406956215,1772350243254,-500.0,0.00017,5]
[406956216,1772350243263,-500.0,0.00017,2]
[406956217,1772350243272,-993.0,0.00017,2]
[406956218,1772350243281,-2000.0,0.0001701,2]
[406956219,1772350243291,-884.0,0.0001704,2]
[406956220,1772350243300,-884.0,0.00017095,2]
[406956221,1772350243317,-5202.21924122,0.00017095,2]
[406956222,1772350243326,-158.373817,0.000171,2]
[406956223,1772350243336,-171.2233,0.0001711,2]
[406956224,1772350243345,-171.2233,0.0001711,2]
[406956225,1772350243354,-171.2232,0.0001711,2]
[406956226,1772350243363,-171.2232,0.0001711,2]
[406956227,1772350243373,-171.2232,0.0001711,2]
[406956228,1772350243384,-171.2232,0.0001711,2]
[406956229,1772350243393,-884.0,0.0001715,2]
[406956230,1772350243402,-58588.74558109,0.00017177,2]
[406956231,1772350243411,-1746.735829,0.000172,7]
[406956232,1772350243421,-7757.776586,0.000172,7]
[406956233,1772350243430,-884.0,0.00017205,2]
[406956234,1772350243440,-1536.36222738,0.00017214,2]
[406956235,1772350243449,-884.0,0.0001726,2]
[406956236,1772350243458,-240.0,0.00017264,2]
[406956237,1772350243467,-6823.06474186,0.000173,2]
[406956238,1772350243476,-1500.0,0.000173,6]
[406956239,1772350243486,-884.0,0.00017314,2]
[406956240,1772350243495,-1305.33998525,0.00017341,2]
[406956241,1772350243504,-5202.21924122,0.00017361,2]
[406956242,1772350243513,-884.0,0.00017369,2]
[406956243,1772350243522,-168.0,0.00017387,2]
[406956244,1772350243532,-300.0,0.000174,6]
[406956245,1772350243653,-2018.659,0.00017414,2]
[406956246,1772350243663,-175.664,0.00017414,2]
[406956247,1772350243672,-8424.6806584,0.0001742,2]
[406956248,1772350243682,-884.0,0.00017424,2]
[406956249,1772350243691,-259.96854569,0.00017428,2]
[406956250,1772350243701,-687.14,0.0001744,2]
[406956251,1772350243710,-884.0,0.00017479,2]
[406956252,1772350243719,-168.0,0.0001748,2]
[406956253,1772350243729,-300.0,0.000175,6]
[406956254,1772350243739,-479.36214283,0.00017512,2]
[406956255,1772350243748,-939.16250311,0.0001753,2]
[406956256,1772350243758,-884.0,0.00017534,2]
[406956257,1772350243768,-58588.74558109,0.00017535,2]
[406956258,1772350243778,-300.0,0.00017539,2]
[406956259,1772350243787,-300.0,0.00017539,2]
[406956260,1772350243796,-545.75228117,0.00017539,2]
[406956261,1772350243806,-300.0,0.00017539,2]
[406956262,1772350243815,-300.0,0.00017539,2]
[406956263,1772350243825,-1500000.0,0.0001754,2]
[406956264,1772350243835,-1536.36222738,0.00017557,2]
[406956265,1772350243844,-884.0,0.00017588,2]
[406956266,1772350243853,-300.0,0.000176,6]
[406956267,1772350243863,-5202.21924122,0.00017627,2]
[406956268,1772350243872,-152.0,0.00017627,5]
[406956269,1772350243881,-1120.94567497,0.0001764,2]
[406956270,1772350243890,-1051.79400974,0.0001764,2]
[406956271,1772350243900,-1119.80376852,0.0001764,2]
[406956272,1772350243909,-1143.20211732,0.0001764,2]
[406956273,1772350243919,-1059.51610295,0.0001764,2]
[406956274,1772350243928,-1112.68692214,0.0001764,2]
[406956275,1772350243937,-1010.30349993,0.0001764,2]
[406956276,1772350243949,-1125.75816023,0.0001764,2]
[406956277,1772350243960,-1091.07360817,0.0001764,2]
[406956278,1772350243970,-1119.37748733,0.0001764,2]
[406956279,1772350243979,-1109.55374083,0.0001764,2]
[406956280,1772350243988,-1079.25381515,0.0001764,2]
[406956281,1772350243998,-1033.17611255,0.0001764,2]
[406956282,1772350244007,-1011.88807985,0.0001764,2]
[406956283,1772350244017,-1078.48156233,0.0001764,2]
[406956284,1772350244027,-1134.74005313,0.0001764,2]
[406956285,1772350244039,-1061.28065508,0.0001764,2]
[406956286,1772350244048,-1096.52813881,0.0001764,2]
[406956287,1772350244057,-1024.74432188,0.0001764,2]
[406956288,1772350244066,-1124.37676765,0.0001764,2]
[406956289,1772350244076,-1084.99808422,0.0001764,2]
[406956290,1772350244085,-1026.39077512,0.0001764,2]
[406956291,1772350244095,-1015.19094917,0.0001764,2]
[406956292,1772350244104,-1047.07260139,0.0001764,2]
[406956293,1772350244114,-1086.91445649,0.0001764,2]
[406956294,1772350244123,-1090.69471418,0.0001764,2]
[406956295,1772350244132,-1057.63923608,0.0001764,2]
[406956296,1772350244142,-1212.88080822,0.0001764,2]
[406956297,1772350244151,-1019.05221681,0.0001764,2]
[406956298,1772350244160,-884.0,0.00017643,2]
[406956299,1772350244169,-2847.0,0.0001768,2]
[406956300,1772350244179,-168.0,0.00017686,2]
[406956301,1772350244188,-884.0,0.00017698,2]
[406956302,1772350244198,-300.0,0.000177,6]
[406956303,1772350244207,-2595.0,0.000177,2]
[406956304,1772350244216,-900.0,0.00017726,7]
[406956305,1772350244225,-600.0,0.00017726,7]
[406956306,1772350244235,-150.0,0.00017742,2]
[406956307,1772350244246,-150.0,0.00017743,2]
[406956308,1772350244255,-150.0,0.00017745,2]
[406956309,1772350244264,-150.0,0.0001775,2]
[406956310,1772350244274,-884.0,0.00017753,2]
[406956311,1772350244283,-150.0,0.00017762,2]
[406956312,1772350244292,-150.0,0.00017766,2]
[406956313,1772350244301,-150.0,0.00017768,2]
[406956314,1772350244310,-150.0,0.00017773,2]
[406956315,1772350244319,-300.0,0.000178,6]
[406956316,1772350244329,-417.0,0.00017804,2]
[406956317,1772350244337,-351.0,0.00017805,2]
[406956318,1772350244348,-884.0,0.00017808,2]
[406956319,1772350244357,-5000.0,0.00017808,2]
[406956320,1772350244366,-500.0,0.00017808,2]
[406956321,1772350244376,-500.0,0.00017808,2]
[406956322,1772350244385,-500.0,0.00017808,2]
[406956323,1772350244394,-500.0,0.00017808,2]
[406956324,1772350244403,-500.0,0.00017808,2]
[406956325,1772350244412,-500.0,0.00017808,2]
[406956326,1772350244421,-500.0,0.00017808,2]
[406956327,1772350244431,-500.0,0.00017808,2]
[406956328,1772350244439,-500.0,0.00017808,2]
[406956329,1772350244450,-695.612525,0.00017808,2]
[406956330,1772350244459,-695.612525,0.00017808,2]
[406956331,1772350244468,-695.612525,0.00017808,2]
[406956332,1772350244478,-695.612525,0.00017808,2]
[406956333,1772350244487,-695.612525,0.00017808,2]
[406956334,1772350244496,-695.612525,0.00017808,2]
[406956335,1772350244505,-695.612525,0.00017808,2]
[406956336,1772350244514,-695.612525,0.00017808,2]
[406956337,1772350244523,-695.612525,0.00017808,2]
[406956338,1772350244532,-695.612525,0.00017808,2]
[406956339,1772350244541,-695.612525,0.00017808,2]
[406956340,1772350244551,-695.612525,0.00017808,2]
[406956341,1772350244562,-712.10425051,0.00017808,2]
[406956342,1772350244571,-712.10425051,0.00017808,2]
[406956343,1772350244582,-712.10425051,0.00017808,2]
[406956344,1772350244593,-712.10425051,0.00017808,2]
[406956345,1772350244604,-712.10425051,0.00017808,2]
[406956346,1772350244613,-712.10425051,0.00017808,2]
[406956347,1772350244624,-712.10425051,0.00017808,2]
[406956348,1772350244634,-500.0,0.00017808,2]
[406956349,1772350244644,-800.0,0.00017808,2]
[406956350,1772350244654,-176.2097608,0.00017809,3]
[406956351,1772350244664,-1639.0,0.00017809,2]
[406956352,1772350244673,-150.0,0.00017814,2]
[406956353,1772350244683,-219.48353704,0.00017835,2]
[406956354,1772350244692,-150.0,0.00017845,2]
[406956355,1772350244702,-25000.0,0.00017856,3]
[406956356,1772350244711,-150.0,0.00017861,2]
[406956357,1772350244721,-884.0,0.00017862,2]
[406956358,1772350244730,-500.0,0.00017863,2]
[406956359,1772350244740,-1000.0,0.00017863,2]
[406956360,1772350244758,-733.851,0.00017863,2]
[406956361,1772350244774,-168.0,0.00017863,2]
[406956362,1772350244784,-25000.0,0.00017865,3]
[406956363,1772350244794,-150.0,0.00017867,2]
[406956364,1772350244804,-25000.0,0.00017874,3]
[406956365,1772350244815,-417.0,0.00017875,2]
[406956366,1772350244825,-25000.0,0.00017882,3]
[406956367,1772350244836,-11870.22913772,0.0001789,2]
[406956368,1772350244847,-25000.0,0.00017891,3]
[406956369,1772350244857,-58588.74558109,0.00017893,2]
[406956370,1772350244867,-5202.21924122,0.00017893,2]
[406956371,1772350244878,-190.345173,0.00017897,7]
[406956372,1772350244888,-150.0,0.00017898,2]
[406956373,1772350244898,-150.0,0.00017899,2]
[406956374,1772350244908,-300.0,0.00017899,2]
[406956375,1772350244918,-300.0,0.00017899,2]
[406956376,1772350244927,-1000.0,0.000179,2]
[406956377,1772350244937,-21975.2446,0.000179,2]
[406956378,1772350244947,-25000.0,0.000179,3]
[406956379,1772350244960,-10000.0,0.000179,2]
[406956380,1772350244971,-12102.88705539,0.000179,3]
[406956381,1772350244982,-211.84948893,0.000179,2]
[406956382,1772350244992,-222.1017724,0.000179,2]
[406956383,1772350245002,-1823.27553784,0.000179,2]
[406956384,1772350245012,-162.1688286,0.000179,2]
[406956385,1772350245022,-8424.6806584,0.000179,2]
[406956386,1772350245034,-300.50066881,0.000179,2]
[406956387,1772350245044,-1536.36222738,0.000179,2]
[406956388,1772350245055,-150.0,0.00017909,2]
[406956389,1772350245065,-1064.10719964,0.00017915,2]
[406956390,1772350245075,-884.0,0.00017917,2]
[406956391,1772350245084,-500.0,0.00017918,2]
[406956392,1772350245094,-150.0,0.00017923,2]
[406956393,1772350245104,-200.81363203,0.00017932,2]
[406956394,1772350245114,-150.0,0.00017942,2]
[406956395,1772350245123,-150.0,0.00017946,2]
[406956396,1772350245138,-150.0,0.00017953,2]
[406956397,1772350245147,-150.0,0.00017961,2]
[406956398,1772350245157,-150.0,0.00017965,2]
[406956399,1772350245168,-150.0,0.00017967,2]
[406956400,1772350245178,-150.0,0.00017967,2]
[406956401,1772350245188,-150.0,0.0001797,2]
[406956402,1772350245198,-884.0,0.00017972,2]
[406956403,1772350245208,-500.0,0.00017972,2]
[406956404,1772350245218,-150.0,0.00017979,2]
[406956405,1772350245228,-939.16250311,0.0001799,2]
[406956406,1772350245238,-256.88623093,0.00017992,2]
[406956407,1772350245248,-330.36078572,0.00017992,2]
[406956408,1772350245258,-30000.0,0.00017993,2]
[406956409,1772350245268,-25260.18844661,0.00017993,3]
[406956410,1772350245277,-241515.4434675,0.00017993,2]
[406956411,1772350245286,-23287.2948382,0.00017993,2]
[406956412,1772350245296,-3952.1857468,0.00017993,2]
[406956413,1772350245306,-1372.9934471,0.00017993,2]
[406956414,1772350245316,-4688.3342981,0.00017993,2]
[406956415,1772350245326,-590.91477512,0.00017999,2]
[406956416,1772350245336,-308.72489785,0.00017999,2]
[406956417,1772350245346,-352.47562623,0.00017999,2]
[406956418,1772350245356,-219.8714796,0.00017999,2]
[406956419,1772350245367,-150.0,0.00017999,2]
[406956420,1772350245376,-161.34480459,0.00017999,2]
[406956421,1772350245386,-802833.78517387,0.00018,2]
[406956422,1772350245621,-1059.80161734,0.00018,2]
[406956423,1772350245650,-1091.00000001,0.00018,2]
[406956424,1772350246650,-250.30938286,0.000155,2]
[406956427,1772350246804,-51.69061714,0.00018,2]
[406956428,1772350246821,-25913.37166722,0.00018,2]
[406956439,1772350247359,-1748.445,0.00018,2]
[406956450,1772350359379,199.02,0.000171,117]
[406956451,1772350479917,-1779.45259238,0.0001995,15]
[406956452,1772350479942,-160.86,0.00021918,30]
[406956453,1772350479964,-1746.73583,0.00021945,30]
[406956454,1772350479983,-164.17,0.00022,120]
[406956455,1772350480004,-1182.78157762,0.00022933,30]
[406956457,1772351267837,-2146.35,0.00011507,2]
[406956458,1772351267859,-1200.0,0.00012258,2]
[406956459,1772351267883,-300.0,0.00012259,2]
[406956460,1772351267904,-4025.9920288,0.00012259,2]
[406956461,1772351267926,-348.96615,0.00012365,2]
[406956462,1772351267949,-250.0,0.00012366,2]
[406956463,1772351267971,-300.0,0.00012519,2]
[406956464,1772351267992,-253.6414745,0.00012519,2]
[406956465,1772351268015,-1600.0,0.0001257,2]
[406956466,1772351268036,-325.96,0.0001258,2]
[406956467,1772351268059,-300.0,0.000126,4]
[406956468,1772351268080,-700.0,0.000127,4]
[406956469,1772351268103,-1000.0,0.000128,4]
[406956470,1772351268125,-2018.659,0.000129,2]
[406956471,1772351268146,-175.664,0.000129,2]
[406956472,1772351268168,-1400.0,0.000129,4]
[406956473,1772351268191,-954.0,0.00012923,2]
[406956474,1772351268211,-5073.3822,0.00012924,2]
[406956475,1772351268233,-2500.0,0.00012924,2]
[406956476,1772351268258,-150.0,0.00012966,2]
[406956477,1772351268279,-7346.98,0.00012967,2]
[406956478,1772351268302,-150.99,0.00012967,2]
[406956479,1772351268340,-299.99,0.00012967,2]
[406956480,1772351268367,-999.99,0.00012967,2]
[406956481,1772351268389,-9999.99,0.00012967,2]
[406956482,1772351268412,-1708.52,0.00012967,2]
[406956483,1772351268433,-150.99,0.00012967,2]
[406956484,1772351268456,-41012.12190679,0.00012967,2]
[406956485,1772351268482,-1344.31694901,0.00012967,2]
[406956486,1772351268505,-939.16250311,0.00013014,2]
[406956487,1772351268526,-500.0,0.00013016,2]
[406956488,1772351268548,-500.0,0.00013016,2]
[406956489,1772351268569,-500.0,0.00013016,2]
[406956490,1772351268591,-500.0,0.00013016,2]
[406956491,1772351268612,-500.0,0.00013016,2]
[406956492,1772351268634,-500.0,0.00013016,2]
[406956493,1772351268656,-246.5570722,0.00013016,2]
[406956494,1772351268677,-523.17251121,0.00013016,2]
[406956495,1772351268700,-151.0,0.00013016,2]
[406956496,1772351268723,-151.0,0.00013016,2]
[406956497,1772351268745,-151.0,0.00013021,2]
[406956498,1772351268767,-151.0,0.00013021,2]